[Event "Early-Titled-Tuesday-Blitz-January-16-2024"]
[Site "Chess.com"]
[Date "2024.01.16"]
[Round "4"]
[White "betta2004"]
[Black "LeoWin2012"]
[Result "1/2-1/2"]
[WhiteElo "2557"]
[BlackElo "2245"]
[TimeControl "180+1"]
[EndTime "8:42:06 PST"]
[Termination "Game drawn by repetition"]

1. d4 {[%clk 0:03:00.9]} 1... Nf6 {[%clk 0:02:58.1]} 2. c4 {[%clk 0:02:49.7]}
2... e6 {[%clk 0:02:43.1]} 3. Nc3 {[%clk 0:02:47.2]} 3... d5 {[%clk 0:02:42.2]}
4. cxd5 {[%clk 0:02:46]} 4... exd5 {[%clk 0:02:42]} 5. Bg5 {[%clk 0:02:46.3]}
5... Be7 {[%clk 0:02:38.5]} 6. e3 {[%clk 0:02:43.4]} 6... O-O {[%clk 0:02:38.7]}
7. Bd3 {[%clk 0:02:23.7]} 7... c6 {[%clk 0:02:38.7]} 8. Qc2 {[%clk 0:02:21]}
8... Re8 {[%clk 0:02:24.2]} 9. Nge2 {[%clk 0:02:10.4]} 9... h6 {[%clk
0:02:23.7]} 10. Bh4 {[%clk 0:02:08.3]} 10... Be6 {[%clk 0:02:18]} 11. O-O {[%clk
0:02:00.5]} 11... Nbd7 {[%clk 0:02:17.4]} 12. Rae1 {[%clk 0:01:53.1]} 12... a5
{[%clk 0:02:14.7]} 13. f3 {[%clk 0:01:51.7]} 13... b5 {[%clk 0:02:12.8]} 14. Nb1
{[%clk 0:01:49.8]} 14... Rc8 {[%clk 0:02:11.7]} 15. Nd2 {[%clk 0:01:50]} 15...
Qb6 {[%clk 0:01:58.1]} 16. Bf2 {[%clk 0:01:49.3]} 16... c5 {[%clk 0:01:58.1]}
17. dxc5 {[%clk 0:01:50.2]} 17... Nxc5 {[%clk 0:01:57.8]} 18. Qb1 {[%clk
0:01:46.3]} 18... Nfd7 {[%clk 0:01:51.6]} 19. Nd4 {[%clk 0:01:45.3]} 19... Nxd3
{[%clk 0:01:47]} 20. Qxd3 {[%clk 0:01:46.2]} 20... Ne5 {[%clk 0:01:35.2]} 21.
Qe2 {[%clk 0:01:36.1]} 21... Nc4 {[%clk 0:01:28.9]} 22. Nb1 {[%clk 0:01:25]}
22... Bc5 {[%clk 0:01:21.4]} 23. b3 {[%clk 0:01:18.7]} 23... Nd6 {[%clk
0:01:15.6]} 24. Rd1 {[%clk 0:01:14.6]} 24... Bd7 {[%clk 0:01:08.1]} 25. Qb2
{[%clk 0:01:05.7]} 25... Nf5 {[%clk 0:00:51.8]} 26. Nxf5 {[%clk 0:01:04.6]}
26... Bxf5 {[%clk 0:00:52.7]} 27. Nc3 {[%clk 0:00:55.6]} 27... Bxe3 {[%clk
0:00:48.4]} 28. Nxd5 {[%clk 0:00:55.9]} 28... Bxf2+ {[%clk 0:00:47.3]} 29. Rxf2
{[%clk 0:00:56.4]} 29... Qa7 {[%clk 0:00:33.5]} 30. g4 {[%clk 0:00:32.9]} 30...
Rc2 {[%clk 0:00:28.5]} 31. Qd4 {[%clk 0:00:33.2]} 31... Qxd4 {[%clk 0:00:27.3]}
32. Rxd4 {[%clk 0:00:34.1]} 32... Rxf2 {[%clk 0:00:21]} 33. Kxf2 {[%clk
0:00:35]} 33... Be6 {[%clk 0:00:17.2]} 34. Nc7 {[%clk 0:00:34]} 34... Rb8 {[%clk
0:00:17.4]} 35. Rd6 {[%clk 0:00:29.8]} 35... Rc8 {[%clk 0:00:12]} 36. Nxe6
{[%clk 0:00:18.3]} 36... Rc2+ {[%clk 0:00:11.1]} 37. Kg3 {[%clk 0:00:17.8]}
37... fxe6 {[%clk 0:00:11.5]} 38. Rxe6 {[%clk 0:00:18.2]} 38... Rxa2 {[%clk
0:00:11.3]} 39. Re5 {[%clk 0:00:18.8]} 39... b4 {[%clk 0:00:11.1]} 40. Rb5
{[%clk 0:00:14.3]} 40... Ra3 {[%clk 0:00:09.3]} 41. h4 {[%clk 0:00:14.3]} 41...
Rxb3 {[%clk 0:00:09.7]} 42. Rxa5 {[%clk 0:00:14.7]} 42... Rb1 {[%clk 0:00:09]}
43. Kf4 {[%clk 0:00:12.4]} 43... b3 {[%clk 0:00:08.3]} 44. Rb5 {[%clk
0:00:12.8]} 44... b2 {[%clk 0:00:08.3]} 45. g5 {[%clk 0:00:08.3]} 45... hxg5+
{[%clk 0:00:08.6]} 46. hxg5 {[%clk 0:00:08.6]} 46... g6 {[%clk 0:00:08.9]} 47.
Rb7 {[%clk 0:00:08.1]} 47... Kf8 {[%clk 0:00:07.6]} 48. Rb6 {[%clk 0:00:06.7]}
48... Kf7 {[%clk 0:00:05]} 49. Rb7+ {[%clk 0:00:05.4]} 49... Kf8 {[%clk
0:00:05.2]} 50. Rb6 {[%clk 0:00:05.6]} 50... Kf7 {[%clk 0:00:05.6]} 51. Rb8
{[%clk 0:00:05.2]} 51... Ke7 {[%clk 0:00:04.5]} 52. Rb6 {[%clk 0:00:05.1]} 52...
Kf7 {[%clk 0:00:04.8]} 1/2-1/2

[Event "Early-Titled-Tuesday-Blitz-January-16-2024"]
[Site "Chess.com"]
[Date "2024.01.16"]
[Round "4"]
[White "Chessdude1987"]
[Black "emeli_chess"]
[Result "0-1"]
[WhiteElo "2294"]
[BlackElo "2452"]
[TimeControl "180+1"]
[EndTime "8:42:09 PST"]
[Termination "emeli_chess won on time"]

1. e4 {[%clk 0:03:00.9]} 1... c5 {[%clk 0:02:59.5]} 2. Nf3 {[%clk 0:03:00.6]}
2... d6 {[%clk 0:02:58]} 3. Bc4 {[%clk 0:03:01]} 3... e6 {[%clk 0:02:57.6]} 4.
O-O {[%clk 0:03:00.2]} 4... Nf6 {[%clk 0:02:57.4]} 5. Re1 {[%clk 0:02:59.5]}
5... Nc6 {[%clk 0:02:56.3]} 6. c3 {[%clk 0:02:59.7]} 6... Be7 {[%clk 0:02:51.5]}
7. Bb3 {[%clk 0:02:56.7]} 7... O-O {[%clk 0:02:49.9]} 8. d4 {[%clk 0:02:56.8]}
8... Qc7 {[%clk 0:02:46.3]} 9. h3 {[%clk 0:02:45.4]} 9... b5 {[%clk 0:02:39.6]}
10. a4 {[%clk 0:02:44.1]} 10... b4 {[%clk 0:02:38.3]} 11. Nbd2 {[%clk
0:02:42.3]} 11... cxd4 {[%clk 0:02:29.2]} 12. cxd4 {[%clk 0:02:42.1]} 12... Re8
{[%clk 0:02:26.8]} 13. e5 {[%clk 0:02:32.5]} 13... Nd5 {[%clk 0:02:21.4]} 14.
exd6 {[%clk 0:02:16.6]} 14... Bxd6 {[%clk 0:02:20.4]} 15. Bxd5 {[%clk 0:02:15]}
15... Bb7 {[%clk 0:02:12.6]} 16. Be4 {[%clk 0:02:10.3]} 16... Na5 {[%clk
0:01:42]} 17. Bxb7 {[%clk 0:02:08.4]} 17... Qxb7 {[%clk 0:01:42.3]} 18. Nb3
{[%clk 0:02:06.1]} 18... Nc4 {[%clk 0:01:37.8]} 19. a5 {[%clk 0:01:57.5]} 19...
Rac8 {[%clk 0:01:34.1]} 20. Be3 {[%clk 0:01:47.4]} 20... Qd5 {[%clk 0:01:31.6]}
21. Re2 {[%clk 0:01:35.9]} 21... h6 {[%clk 0:01:27.1]} 22. Nc5 {[%clk
0:01:27.2]} 22... Bb8 {[%clk 0:01:12.3]} 23. b3 {[%clk 0:01:23.6]} 23... Nd6
{[%clk 0:01:11.4]} 24. Rc2 {[%clk 0:01:16.9]} 24... Nb5 {[%clk 0:01:10.7]} 25.
Qf1 {[%clk 0:01:10.3]} 25... Nc3 {[%clk 0:01:10.3]} 26. Qc4 {[%clk 0:01:06.2]}
26... Qh5 {[%clk 0:01:08]} 27. Qxb4 {[%clk 0:00:59.9]} 27... Nd5 {[%clk
0:01:07.7]} 28. Qd2 {[%clk 0:00:56.3]} 28... f5 {[%clk 0:00:49.6]} 29. Ne5
{[%clk 0:00:55.3]} 29... Re7 {[%clk 0:00:31.6]} 30. f4 {[%clk 0:00:54.7]} 30...
Rf8 {[%clk 0:00:27.4]} 31. Nc6 {[%clk 0:00:47]} 31... Ree8 {[%clk 0:00:25]} 32.
Nxb8 {[%clk 0:00:46.3]} 32... Rxb8 {[%clk 0:00:25.2]} 33. Nd7 {[%clk 0:00:42.3]}
33... Rxb3 {[%clk 0:00:21.3]} 34. Bf2 {[%clk 0:00:25]} 34... Rd8 {[%clk
0:00:19.7]} 35. Ne5 {[%clk 0:00:20.6]} 35... Rdb8 {[%clk 0:00:16.5]} 36. Rac1
{[%clk 0:00:20.2]} 36... Qe8 {[%clk 0:00:14.6]} 37. Rc6 {[%clk 0:00:16.5]} 37...
Kh7 {[%clk 0:00:14.3]} 38. Rd6 {[%clk 0:00:14.5]} 38... Rb2 {[%clk 0:00:14.5]}
39. Rc2 {[%clk 0:00:14.3]} 39... Rxc2 {[%clk 0:00:14]} 40. Qxc2 {[%clk
0:00:14.4]} 40... Nf6 {[%clk 0:00:13.1]} 41. Kh2 {[%clk 0:00:12.8]} 41... Ne4
{[%clk 0:00:13]} 42. Rc6 {[%clk 0:00:11.8]} 42... Nxf2 {[%clk 0:00:11.8]} 43.
Qxf2 {[%clk 0:00:10.9]} 43... Rb3 {[%clk 0:00:11.5]} 44. d5 {[%clk 0:00:10]}
44... exd5 {[%clk 0:00:11.4]} 45. Qd4 {[%clk 0:00:09.8]} 45... Qb8 {[%clk
0:00:09.1]} 46. Rc3 {[%clk 0:00:07.9]} 46... Rb4 {[%clk 0:00:08.7]} 47. Qxd5
{[%clk 0:00:07.2]} 47... Rxf4 {[%clk 0:00:08.8]} 48. Rg3 {[%clk 0:00:05.9]}
48... Re4 {[%clk 0:00:08.3]} 49. Ng6 {[%clk 0:00:02.5]} 49... Re3 {[%clk
0:00:06.3]} 50. Nh4 {[%clk 0:00:01.4]} 50... Qxg3+ {[%clk 0:00:05.5]} 0-1

[Event "Early-Titled-Tuesday-Blitz-January-16-2024"]
[Site "Chess.com"]
[Date "2024.01.16"]
[Round "4"]
[White "VladimirKramnik"]
[Black "hakanazeri2"]
[Result "1-0"]
[WhiteElo "2930"]
[BlackElo "2531"]
[TimeControl "180+1"]
[EndTime "8:42:16 PST"]
[Termination "VladimirKramnik won by resignation"]

1. c4 {[%clk 0:03:00.9]} 1... e6 {[%clk 0:02:52.6]} 2. Nc3 {[%clk 0:03:00.6]}
2... d5 {[%clk 0:02:52.6]} 3. d4 {[%clk 0:03:00.5]} 3... Bb4 {[%clk 0:02:52.7]}
4. e3 {[%clk 0:02:59.4]} 4... Nf6 {[%clk 0:02:52.3]} 5. a3 {[%clk 0:02:59.1]}
5... Be7 {[%clk 0:02:50.8]} 6. Nf3 {[%clk 0:02:57.9]} 6... O-O {[%clk
0:02:50.5]} 7. Bd3 {[%clk 0:02:58]} 7... a6 {[%clk 0:02:48.3]} 8. c5 {[%clk
0:02:54.9]} 8... b6 {[%clk 0:02:45.4]} 9. b4 {[%clk 0:02:54.5]} 9... a5 {[%clk
0:02:45.6]} 10. Rb1 {[%clk 0:02:51.7]} 10... axb4 {[%clk 0:02:45.3]} 11. axb4
{[%clk 0:02:51.1]} 11... bxc5 {[%clk 0:02:40.8]} 12. bxc5 {[%clk 0:02:48.9]}
12... Ba6 {[%clk 0:02:40.8]} 13. Ne5 {[%clk 0:02:36.2]} 13... Bxd3 {[%clk
0:02:32.1]} 14. Nxd3 {[%clk 0:02:30.9]} 14... Nc6 {[%clk 0:02:22.8]} 15. O-O
{[%clk 0:02:31.1]} 15... Ne4 {[%clk 0:02:10.4]} 16. Qc2 {[%clk 0:02:20.6]} 16...
Bf6 {[%clk 0:01:26.7]} 17. Nxe4 {[%clk 0:01:58.4]} 17... dxe4 {[%clk 0:01:26.1]}
18. Nf4 {[%clk 0:01:59.1]} 18... e5 {[%clk 0:00:48.7]} 19. dxe5 {[%clk
0:01:51.3]} 19... Nxe5 {[%clk 0:00:47.3]} 20. Qxe4 {[%clk 0:01:51.4]} 20... Re8
{[%clk 0:00:47.2]} 21. Bb2 {[%clk 0:01:43.2]} 21... Ng6 {[%clk 0:00:39.3]} 22.
Qf3 {[%clk 0:01:27.8]} 22... Bxb2 {[%clk 0:00:32.2]} 23. Rxb2 {[%clk 0:01:27.8]}
23... Qf6 {[%clk 0:00:26.9]} 24. Rb4 {[%clk 0:01:16.5]} 24... Rab8 {[%clk
0:00:17.8]} 25. Rd4 {[%clk 0:00:59.4]} 25... Nxf4 {[%clk 0:00:11.2]} 26. Rxf4
{[%clk 0:00:58.3]} 26... Qe6 {[%clk 0:00:11.8]} 27. h4 {[%clk 0:00:55.1]} 27...
g6 {[%clk 0:00:09.7]} 28. c6 {[%clk 0:00:47]} 28... Rb6 {[%clk 0:00:09.3]} 29.
Rc1 {[%clk 0:00:42.5]} 29... Reb8 {[%clk 0:00:09.7]} 30. Kh2 {[%clk 0:00:41.8]}
30... Rb1 {[%clk 0:00:08.7]} 31. Rcc4 {[%clk 0:00:28]} 31... Ra1 {[%clk
0:00:07.5]} 32. Rce4 {[%clk 0:00:20.3]} 32... Qd6 {[%clk 0:00:07.8]} 33. Rd4
{[%clk 0:00:13.5]} 33... Qe5 {[%clk 0:00:06]} 34. Qe4 {[%clk 0:00:13.4]} 34...
Qxe4 {[%clk 0:00:03.5]} 35. Rdxe4 {[%clk 0:00:13.6]} 35... Rc1 {[%clk
0:00:03.8]} 36. Re7 {[%clk 0:00:13.6]} 36... Rxc6 {[%clk 0:00:03.3]} 37. Rfxf7
{[%clk 0:00:12.8]} 37... h5 {[%clk 0:00:03.3]} 38. Rg7+ {[%clk 0:00:12.7]} 38...
Kf8 {[%clk 0:00:03.5]} 39. Rh7 {[%clk 0:00:12.3]} 39... Rb2 {[%clk 0:00:02.4]}
40. Rhf7+ {[%clk 0:00:07.9]} 40... Kg8 {[%clk 0:00:02.5]} 41. Kg3 {[%clk
0:00:07.8]} 41... Rcc2 {[%clk 0:00:01.4]} 42. Rxc7 {[%clk 0:00:05.7]} 42... Rc6
{[%clk 0:00:01]} 43. Rxc6 {[%clk 0:00:03.8]} 43... Kxf7 {[%clk 0:00:01.4]} 44.
Rc4 {[%clk 0:00:04.4]} 44... Kf6 {[%clk 0:00:01.9]} 45. Rf4+ {[%clk 0:00:04.9]}
45... Kg7 {[%clk 0:00:02.7]} 46. Kf3 {[%clk 0:00:04.9]} 46... Rb1 {[%clk
0:00:03.4]} 47. g3 {[%clk 0:00:04.6]} 47... Ra1 {[%clk 0:00:04.3]} 48. Rd4
{[%clk 0:00:04.2]} 48... Ra2 {[%clk 0:00:05.1]} 49. e4 {[%clk 0:00:04.4]} 49...
Rb2 {[%clk 0:00:05.8]} 50. Ke3 {[%clk 0:00:04.3]} 50... Rb3+ {[%clk 0:00:06.3]}
51. Kf4 {[%clk 0:00:04.4]} 51... Rb1 {[%clk 0:00:07.2]} 52. f3 {[%clk
0:00:05.1]} 52... Rf1 {[%clk 0:00:08]} 53. Rd7+ {[%clk 0:00:05.1]} 53... Kh6
{[%clk 0:00:08.5]} 54. Rd6 {[%clk 0:00:05.8]} 54... Re1 {[%clk 0:00:09.4]} 55.
e5 {[%clk 0:00:05]} 55... Ra1 {[%clk 0:00:10.3]} 56. Rd4 {[%clk 0:00:04.1]}
56... Ra4 {[%clk 0:00:11.2]} 57. Rxa4 {[%clk 0:00:03.7]} 1-0

[Event "Early-Titled-Tuesday-Blitz-January-16-2024"]
[Site "Chess.com"]
[Date "2024.01.16"]
[Round "4"]
[White "GodDMuhammad"]
[Black "tteshan"]
[Result "1/2-1/2"]
[WhiteElo "2371"]
[BlackElo "2592"]
[TimeControl "180+1"]
[EndTime "8:42:21 PST"]
[Termination "Game drawn - insufficient material"]

1. f4 {[%clk 0:03:00.9]} 1... c5 {[%clk 0:02:59.3]} 2. Nf3 {[%clk 0:02:59.8]}
2... g6 {[%clk 0:02:59.9]} 3. d3 {[%clk 0:02:54.3]} 3... Bg7 {[%clk 0:03:00.2]}
4. e4 {[%clk 0:02:54.2]} 4... Nc6 {[%clk 0:03:00]} 5. c3 {[%clk 0:02:54.1]} 5...
e6 {[%clk 0:03:00.6]} 6. g3 {[%clk 0:02:52.9]} 6... Nge7 {[%clk 0:03:01.1]} 7.
Bg2 {[%clk 0:02:53.2]} 7... O-O {[%clk 0:03:01.8]} 8. O-O {[%clk 0:02:53.6]}
8... d5 {[%clk 0:02:54.5]} 9. e5 {[%clk 0:02:52.6]} 9... d4 {[%clk 0:02:52.5]}
10. Qe2 {[%clk 0:02:50.6]} 10... b6 {[%clk 0:02:40.7]} 11. Nbd2 {[%clk 0:02:50]}
11... dxc3 {[%clk 0:02:30.1]} 12. bxc3 {[%clk 0:02:49.5]} 12... Bb7 {[%clk
0:02:21.6]} 13. Rd1 {[%clk 0:02:44.6]} 13... Nf5 {[%clk 0:02:19.7]} 14. Ne4
{[%clk 0:01:44.7]} 14... h5 {[%clk 0:02:17.1]} 15. Be3 {[%clk 0:01:33.3]} 15...
Nxe3 {[%clk 0:02:08.8]} 16. Qxe3 {[%clk 0:01:33]} 16... Qe7 {[%clk 0:02:07.4]}
17. Nd6 {[%clk 0:01:32.4]} 17... Rad8 {[%clk 0:02:00.1]} 18. Ng5 {[%clk
0:01:31]} 18... Ba8 {[%clk 0:01:56.3]} 19. d4 {[%clk 0:01:14.1]} 19... cxd4
{[%clk 0:01:52.3]} 20. cxd4 {[%clk 0:01:15]} 20... Nb4 {[%clk 0:01:41.2]} 21.
Bxa8 {[%clk 0:01:01.6]} 21... Rxa8 {[%clk 0:01:42.1]} 22. Rdc1 {[%clk
0:00:46.4]} 22... Nd5 {[%clk 0:01:40.8]} 23. Qd3 {[%clk 0:00:41.9]} 23... Bh6
{[%clk 0:01:05.3]} 24. Nge4 {[%clk 0:00:41.5]} 24... Rfd8 {[%clk 0:00:59.9]} 25.
a4 {[%clk 0:00:41.2]} 25... Qd7 {[%clk 0:00:48.1]} 26. a5 {[%clk 0:00:38.3]}
26... Bf8 {[%clk 0:00:46.9]} 27. Rab1 {[%clk 0:00:18.4]} 27... Bxd6 {[%clk
0:00:45.2]} 28. Nxd6 {[%clk 0:00:16.3]} 28... Rab8 {[%clk 0:00:39.3]} 29. axb6
{[%clk 0:00:14.5]} 29... axb6 {[%clk 0:00:40.2]} 30. Rb2 {[%clk 0:00:13.7]}
30... Kg7 {[%clk 0:00:35]} 31. Rcb1 {[%clk 0:00:13.8]} 31... h4 {[%clk
0:00:34.9]} 32. Kg2 {[%clk 0:00:12.1]} 32... Rh8 {[%clk 0:00:33.8]} 33. Rb5
{[%clk 0:00:10]} 33... Ra8 {[%clk 0:00:32.9]} 34. R1b2 {[%clk 0:00:09.9]} 34...
Ra1 {[%clk 0:00:28.4]} 35. f5 {[%clk 0:00:08.6]} 35... hxg3 {[%clk 0:00:15.3]}
36. Qxg3 {[%clk 0:00:08.1]} 36... Rh6 {[%clk 0:00:03.5]} 37. fxe6 {[%clk
0:00:07]} 37... Qxe6 {[%clk 0:00:03.6]} 38. Rf2 {[%clk 0:00:05]} 38... Nc7
{[%clk 0:00:03.2]} 39. Rxf7+ {[%clk 0:00:03.6]} 39... Qxf7 {[%clk 0:00:03.6]}
40. Nxf7 {[%clk 0:00:04.5]} 40... Nxb5 {[%clk 0:00:04.1]} 41. Nxh6 {[%clk
0:00:05]} 41... Nxd4 {[%clk 0:00:04.2]} 42. Qc3 {[%clk 0:00:04.6]} 42... Ra2+
{[%clk 0:00:03.9]} 43. Kh3 {[%clk 0:00:04.9]} 43... Ne2 {[%clk 0:00:02.9]} 44.
Qb3 {[%clk 0:00:04.4]} 44... Rd2 {[%clk 0:00:02.3]} 45. Ng4 {[%clk 0:00:04.8]}
45... Rd3+ {[%clk 0:00:01.9]} 46. Qxd3 {[%clk 0:00:04.7]} 46... Nf4+ {[%clk
0:00:02.6]} 47. Kg3 {[%clk 0:00:05.5]} 47... Nxd3 {[%clk 0:00:03.4]} 48. e6
{[%clk 0:00:06.4]} 48... Nc5 {[%clk 0:00:03.9]} 49. Kf4 {[%clk 0:00:06.9]} 49...
Nxe6+ {[%clk 0:00:03.3]} 50. Ke5 {[%clk 0:00:07.8]} 50... Nf8 {[%clk 0:00:03.7]}
51. Kd5 {[%clk 0:00:07.9]} 51... g5 {[%clk 0:00:03.8]} 52. Kc6 {[%clk
0:00:08.2]} 52... Kg6 {[%clk 0:00:04.4]} 53. Kxb6 {[%clk 0:00:08.7]} 53... Kf5
{[%clk 0:00:05]} 54. Ne3+ {[%clk 0:00:08.7]} 54... Kf4 {[%clk 0:00:05.6]} 55.
Nd5+ {[%clk 0:00:09.3]} 55... Kf3 {[%clk 0:00:06]} 56. Kc5 {[%clk 0:00:09.7]}
56... Kg2 {[%clk 0:00:06]} 57. Kd4 {[%clk 0:00:10.4]} 57... Kxh2 {[%clk
0:00:06.2]} 58. Ke4 {[%clk 0:00:11]} 58... g4 {[%clk 0:00:06.2]} 59. Ne3 {[%clk
0:00:11.4]} 59... g3 {[%clk 0:00:05]} 60. Kf3 {[%clk 0:00:12.1]} 60... Kh3
{[%clk 0:00:04.2]} 61. Nf1 {[%clk 0:00:12.5]} 61... g2 {[%clk 0:00:04.5]} 62.
Kf2 {[%clk 0:00:12.7]} 62... Ng6 {[%clk 0:00:04]} 63. Ne3 {[%clk 0:00:12.5]}
63... Ne5 {[%clk 0:00:02.9]} 64. Nxg2 {[%clk 0:00:12.6]} 1/2-1/2

[Event "Early-Titled-Tuesday-Blitz-January-16-2024"]
[Site "Chess.com"]
[Date "2024.01.16"]
[Round "4"]
[White "carloseduar100"]
[Black "deribas12345"]
[Result "0-1"]
[WhiteElo "2257"]
[BlackElo "2495"]
[TimeControl "180+1"]
[EndTime "8:42:23 PST"]
[Termination "deribas12345 won on time"]

1. g3 {[%clk 0:02:57.8]} 1... c5 {[%clk 0:02:59.6]} 2. Bg2 {[%clk 0:02:58.7]}
2... Nc6 {[%clk 0:03:00.1]} 3. Nf3 {[%clk 0:02:57.8]} 3... d5 {[%clk 0:03:00.4]}
4. O-O {[%clk 0:02:58.7]} 4... e5 {[%clk 0:03:00.8]} 5. d3 {[%clk 0:02:59]} 5...
Nge7 {[%clk 0:03:01.1]} 6. Nbd2 {[%clk 0:02:59.4]} 6... Ng6 {[%clk 0:03:00.8]}
7. c3 {[%clk 0:02:59.9]} 7... Be7 {[%clk 0:03:00.6]} 8. a3 {[%clk 0:03:00.2]}
8... a5 {[%clk 0:03:00.3]} 9. e4 {[%clk 0:03:00.6]} 9... d4 {[%clk 0:03:00.2]}
10. h4 {[%clk 0:02:59.8]} 10... dxc3 {[%clk 0:02:59.9]} 11. bxc3 {[%clk
0:02:59.8]} 11... Qxd3 {[%clk 0:03:00]} 12. Bb2 {[%clk 0:02:57.3]} 12... Bg4
{[%clk 0:02:56.1]} 13. Re1 {[%clk 0:02:54.6]} 13... Rd8 {[%clk 0:02:51.4]} 14.
Qe2 {[%clk 0:02:46.1]} 14... Qxe2 {[%clk 0:02:50.1]} 15. Rxe2 {[%clk 0:02:47]}
15... O-O {[%clk 0:02:45.5]} 16. Nf1 {[%clk 0:02:44.2]} 16... b5 {[%clk
0:02:30.8]} 17. Ne3 {[%clk 0:02:41.5]} 17... Be6 {[%clk 0:02:30.6]} 18. a4
{[%clk 0:02:41.8]} 18... b4 {[%clk 0:02:29.6]} 19. cxb4 {[%clk 0:02:42.1]} 19...
axb4 {[%clk 0:02:23.7]} 20. h5 {[%clk 0:02:42.2]} 20... Nh8 {[%clk 0:02:22.9]}
21. Nxe5 {[%clk 0:02:31.1]} 21... Nxe5 {[%clk 0:02:22.6]} 22. Bxe5 {[%clk
0:02:31.4]} 22... c4 {[%clk 0:02:22.1]} 23. a5 {[%clk 0:02:31.6]} 23... f6
{[%clk 0:02:11.8]} 24. Bc7 {[%clk 0:02:21.3]} 24... Rc8 {[%clk 0:02:10.6]} 25.
Bb6 {[%clk 0:02:15.3]} 25... b3 {[%clk 0:02:06.1]} 26. e5 {[%clk 0:02:10.7]}
26... c3 {[%clk 0:02:00.8]} 27. a6 {[%clk 0:01:59.6]} 27... c2 {[%clk
0:02:00.9]} 28. Nxc2 {[%clk 0:01:55.8]} 28... bxc2 {[%clk 0:02:00.9]} 29. Rc1
{[%clk 0:01:54.2]} 29... Bc4 {[%clk 0:01:34.6]} 30. Rexc2 {[%clk 0:01:31.8]}
30... Bxa6 {[%clk 0:01:34.2]} 31. Rxc8 {[%clk 0:01:31.4]} 31... Rxc8 {[%clk
0:01:33.1]} 32. Rxc8+ {[%clk 0:01:31.5]} 32... Bxc8 {[%clk 0:01:32.8]} 33. exf6
{[%clk 0:01:32.4]} 33... Bxf6 {[%clk 0:01:31.8]} 34. Be3 {[%clk 0:01:31.3]}
34... Nf7 {[%clk 0:01:25.4]} 35. Bd5 {[%clk 0:01:29.2]} 35... h6 {[%clk
0:01:25.2]} 36. Kg2 {[%clk 0:01:26.7]} 36... Bg4 {[%clk 0:01:22.9]} 37. Bf3
{[%clk 0:01:23.4]} 37... Bxf3+ {[%clk 0:01:13.5]} 38. Kxf3 {[%clk 0:01:24.3]}
38... Bg5 {[%clk 0:01:13.9]} 39. Bd4 {[%clk 0:01:21.8]} 39... Nd6 {[%clk
0:01:05.4]} 40. g4 {[%clk 0:01:20.5]} 40... Kf7 {[%clk 0:01:04.4]} 41. Kg3
{[%clk 0:01:19.4]} 41... Bf6 {[%clk 0:01:02.5]} 42. Be3 {[%clk 0:01:09.8]} 42...
Ne4+ {[%clk 0:01:01.5]} 43. Kf3 {[%clk 0:01:10.2]} 43... Ng5+ {[%clk 0:01:00.8]}
44. Kg3 {[%clk 0:01:10.1]} 44... Ke6 {[%clk 0:00:54.5]} 45. f4 {[%clk
0:01:07.6]} 45... Ne4+ {[%clk 0:00:52.5]} 46. Kf3 {[%clk 0:01:07.9]} 46... Kd5
{[%clk 0:00:51.5]} 47. Bc1 {[%clk 0:00:59.7]} 47... Kd4 {[%clk 0:00:45.6]} 48.
Be3+ {[%clk 0:00:40]} 48... Kd3 {[%clk 0:00:45.4]} 49. Bc1 {[%clk 0:00:40.1]}
49... Nd6 {[%clk 0:00:33.5]} 50. g5 {[%clk 0:00:38.7]} 50... Bd4 {[%clk
0:00:22.2]} 51. Kg4 {[%clk 0:00:34.3]} 51... Ke4 {[%clk 0:00:21.1]} 52. Bd2
{[%clk 0:00:26.3]} 52... Nf5 {[%clk 0:00:20.6]} 53. Bb4 {[%clk 0:00:04.6]} 53...
Ne3+ {[%clk 0:00:15.8]} 54. Kg3 {[%clk 0:00:04.5]} 54... Nd5 {[%clk 0:00:11.2]}
0-1